fUST/lending_fUST_20250108
["ID","MTS","AMOUNT","RATE_DAILY","PERIOD"]
[348093411,1736307069805,506.89511376,0.00022998,3]
[348093412,1736307070226,736.24,0.00022998,3]
[348093413,1736307071388,736.24,0.00022998,3]
[348093414,1736307072701,736.24,0.00022998,3]
[348093415,1736307073388,736.24,0.00022998,3]
[348093416,1736307074408,736.24,0.00022998,3]
[348093417,1736307075326,736.24,0.00022998,3]
[348093418,1736307076812,736.24,0.00022998,3]
[348093419,1736307077254,505.20690931,0.00022998,3]
[348093420,1736307077720,736.24,0.00022998,3]
[348093421,1736307078247,736.24,0.00022998,3]
[348093422,1736307079013,736.24,0.00022998,3]
[348093423,1736307080476,736.24,0.00022998,3]
[348093424,1736307081210,736.24,0.00022998,3]
[348093425,1736307081758,394.0,0.00022414,2]
[348093426,1736307082152,736.24,0.00022998,3]
[348093427,1736307083024,736.24,0.00022998,3]
[348093428,1736307083054,500.0,0.00022998,3]
[348093429,1736307084484,222.39064741,0.00022998,3]
[348093430,1736307084765,736.24,0.00022998,3]
[348093431,1736307085517,736.24,0.00022998,3]
[348093432,1736307086097,736.34851126,0.00022998,3]
[348093433,1736307089573,500.0,0.00022998,3]
[348093434,1736307094145,585.23294069,0.00022998,3]
[348093435,1736307096339,1122.41216886,0.00023,14]
[348093443,1736307922132,162.96369,0.00013973,2]
[348093444,1736308027153,-258.64,0.00018558,2]
[348093445,1736308027177,-258.64,0.00018745,2]
[348093446,1736308027201,-188.541837,0.00019356,2]
[348093447,1736308027227,-256.80145352,0.00019578,2]
[348093448,1736308027251,-342.40929461,0.0001961,2]
[348093449,1736308037081,-2267.136,0.00019414,2]
[348093450,1736308045140,-471.40723214,0.0001922,2]
[348093451,1736308153125,-1295.2988847,0.0001922,2]
[348093452,1736308153147,-1766.70611684,0.00019414,2]
[348093453,1736308153168,-171.20096902,0.00019578,2]
[348093454,1736308153188,-4033.84211684,0.0001961,2]
[348093455,1736308153209,-257.987923,0.00019678,2]
[348093456,1736308153234,-258.64,0.0001971,2]
[348093457,1736308153258,-171.20096901,0.00019739,2]
[348093458,1736308153278,-171.20096901,0.000199,2]
[348093459,1736308153299,-5000.0,0.0002,2]
[348093460,1736308153319,-5000.0,0.0002,2]
[348093461,1736308153339,-4008.91869618,0.0002,2]
[348093462,1736308156142,-991.08130382,0.0002,2]
[348093463,1736308156277,-5000.0,0.0002,2]
[348093464,1736308156299,-5000.0,0.0002,2]
[348093465,1736308156320,-1798.12737298,0.0002,2]
[348093466,1736308162097,-1359.92565597,0.000198,2]
[348093467,1736308162120,-3201.87262702,0.0002,2]
[348093468,1736308162142,-1013.37281953,0.0002,2]
[348093469,1736308162163,-196.48382623,0.00020591,2]
[348093470,1736308162188,-157.6,0.00020899,2]
[348093471,1736308162210,-1079.16531024,0.00020899,2]
[348093472,1736308162235,-846.0,0.000209,2]
[348093473,1736308162260,-846.0,0.000209,2]
[348093474,1736308162282,-5076.0,0.000209,2]
[348093475,1736308162303,-178.61,0.000209,2]
[348093476,1736308162325,-188.15261835,0.000209,2]
[348093477,1736308162348,-500.0,0.00021516,3]
[348093478,1736308162370,-500.0,0.00021516,3]
[348093479,1736308162393,-500.0,0.00021516,3]
[348093480,1736308162415,-1010.60296835,0.00021517,7]
[348093481,1736308162437,-500.0,0.00021517,3]
[348093482,1736308162459,-500.0,0.00021517,3]
[348093483,1736308162484,-500.0,0.00021517,3]
[348093484,1736308162506,-500.0,0.00021517,3]
[348093485,1736308162527,-500.0,0.00021517,3]
[348093486,1736308162548,-500.0,0.00021517,3]
[348093487,1736308162571,-500.0,0.00021517,3]
[348093488,1736308162591,-500.0,0.00021517,3]
[348093489,1736308162612,-500.0,0.00021517,3]
[348093490,1736308162634,-512.81472607,0.00021517,3]
[348093491,1736308162655,-500.0,0.00021517,3]
[348093492,1736308162676,-517.53591371,0.00021517,3]
[348093493,1736308162698,-500.0,0.00021517,3]
[348093494,1736308162719,-500.0,0.00021517,3]
[348093495,1736308162744,-500.0,0.00021517,3]
[348093496,1736308162766,-500.0,0.00021517,3]
[348093497,1736308162787,-519.60782419,0.00021517,3]
[348093498,1736308162810,-500.0,0.00021517,3]
[348093499,1736308162831,-548.36909111,0.00021517,3]
[348093500,1736308162851,-509.23734193,0.00021517,3]
[348093501,1736308162873,-500.0,0.00021517,3]
[348093502,1736308162893,-500.0,0.00021517,3]
[348093503,1736308162916,-500.0,0.00021517,3]
[348093504,1736308162937,-500.0,0.00021517,3]
[348093505,1736308162960,-506.53518827,0.00021517,3]
[348093506,1736308162987,-500.0,0.00021517,3]
[348093507,1736308163010,-500.0,0.00021517,3]
[348093508,1736308163032,-500.0,0.00021517,3]
[348093509,1736308163054,-500.0,0.00021517,3]
[348093510,1736308163075,-500.0,0.00021517,3]
[348093511,1736308163096,-500.0,0.00021517,3]
[348093512,1736308163119,-500.0,0.00021517,3]
[348093513,1736308163140,-500.0,0.00021517,3]
[348093514,1736308163162,-500.0,0.00021517,3]
[348093515,1736308163184,-500.0,0.00021518,3]
[348093516,1736308163205,-500.0,0.00021518,3]
[348093517,1736308163229,-500.0,0.00021518,3]
[348093518,1736308163252,-500.0,0.00021518,3]
[348093519,1736308163277,-500.0,0.00021518,3]
[348093520,1736308163300,-500.0,0.00021518,3]
[348093521,1736308163323,-500.0,0.00021518,3]
[348093522,1736308163348,-636.909839,0.00021518,3]
[348093523,1736308163371,-500.0,0.00021518,3]
[348093524,1736308163393,-500.0,0.00021518,3]
[348093525,1736308163415,-500.0,0.00021518,3]
[348093526,1736308163439,-500.0,0.00021518,3]
[348093527,1736308163462,-500.0,0.00021518,3]
[348093528,1736308163487,-500.0,0.00021518,3]
[348093529,1736308163510,-500.0,0.00021518,3]
[348093530,1736308163531,-500.0,0.00021518,3]
[348093531,1736308163554,-500.0,0.00021518,3]
[348093532,1736308163576,-500.0,0.00021518,3]
[348093533,1736308163598,-500.0,0.00021518,3]
[348093534,1736308163620,-500.0,0.00021518,3]
[348093535,1736308163643,-500.0,0.00021518,3]
[348093536,1736308163664,-500.0,0.00021518,3]
[348093537,1736308163686,-500.0,0.00021518,3]
[348093538,1736308163708,-500.0,0.00021518,3]
[348093539,1736308163733,-500.0,0.00021518,3]
[348093540,1736308163756,-500.0,0.00021518,3]
[348093541,1736308163778,-500.0,0.00021518,3]
[348093542,1736308163800,-250.75313712,0.00021518,3]
[348093543,1736308163822,-500.0,0.00021518,3]
[348093544,1736308163845,-500.0,0.00021518,3]
[348093545,1736308163868,-500.0,0.00021518,3]
[348093546,1736308163889,-500.0,0.00021518,3]
[348093547,1736308163912,-500.0,0.00021518,3]
[348093548,1736308163935,-500.0,0.00021518,3]
[348093549,1736308163960,-500.0,0.00021518,3]
[348093550,1736308163985,-331.23384754,0.00021518,3]
[348093551,1736308164008,-500.0,0.00021518,3]
[348093552,1736308164031,-500.0,0.00021518,3]
[348093553,1736308164054,-500.0,0.00021518,3]
[348093554,1736308164077,-500.0,0.00021518,3]
[348093555,1736308164099,-500.0,0.00021518,3]
[348093556,1736308164121,-500.0,0.00021518,3]
[348093557,1736308164262,-500.0,0.00021518,3]
[348093558,1736308164290,-500.0,0.00021518,3]
[348093559,1736308164315,-500.0,0.00021518,3]
[348093560,1736308164338,-500.0,0.00021518,3]
[348093561,1736308164362,-500.0,0.00021518,3]
[348093562,1736308164384,-500.0,0.00021518,3]
[348093563,1736308164406,-500.0,0.00021518,3]
[348093564,1736308164429,-500.0,0.00021518,3]
[348093565,1736308164452,-500.0,0.00021518,3]
[348093566,1736308164475,-500.0,0.00021518,3]
[348093567,1736308164498,-500.0,0.00021518,3]
[348093568,1736308164529,-500.0,0.00021518,3]
[348093569,1736308164557,-500.0,0.00021518,3]
[348093570,1736308164584,-615.96064737,0.00021518,3]
[348093571,1736308164609,-500.0,0.00021518,3]
[348093572,1736308164632,-506.21311583,0.00021518,3]
[348093573,1736308164656,-500.0,0.00021518,3]
[348093574,1736308164679,-500.0,0.00021518,3]
[348093575,1736308164702,-500.0,0.00021518,3]
[348093576,1736308164727,-505.06058262,0.00021518,3]
[348093577,1736308164750,-500.0,0.00021518,3]
[348093578,1736308164775,-500.0,0.00021518,3]
[348093579,1736308164799,-3866.27,0.00021518,3]
[348093580,1736308164822,-500.0,0.00021518,3]
[348093581,1736308164845,-500.0,0.00021518,3]
[348093582,1736308164869,-500.0,0.00021518,3]
[348093583,1736308164892,-500.0,0.00021518,3]
[348093584,1736308164920,-500.0,0.00021518,3]
[348093585,1736308164945,-500.0,0.00021518,3]
[348093586,1736308164970,-500.0,0.00021518,3]
[348093587,1736308164997,-500.0,0.00021518,3]
[348093588,1736308165020,-500.0,0.00021518,3]
[348093589,1736308165044,-337.201422,0.00021518,3]
[348093590,1736308165068,-500.0,0.00021518,3]
[348093591,1736308165092,-500.0,0.00021518,3]
[348093592,1736308165114,-560.63495353,0.00021518,3]
[348093593,1736308165137,-24900.0,0.00021519,2]
[348093594,1736308165162,-500.0,0.0002179,3]
[348093595,1736308165185,-505.60444701,0.0002179,3]
[348093596,1736308165209,-500.0,0.0002179,3]
[348093597,1736308165237,-500.0,0.00021791,3]
[348093598,1736308165270,-500.0,0.00021791,3]
[348093599,1736308165294,-500.0,0.00021791,3]
[348093600,1736308165323,-504.48295395,0.00021791,3]
[348093601,1736308165346,-505.15251203,0.00021791,3]
[348093602,1736308165370,-500.0,0.00021791,3]
[348093603,1736308165391,-534.69207468,0.00021791,3]
[348093604,1736308165414,-500.0,0.00021791,3]
[348093605,1736308165437,-508.07539387,0.00021791,3]
[348093606,1736308165460,-506.39520152,0.00021791,3]
[348093607,1736308165486,-505.83425954,0.00021791,3]
[348093608,1736308165508,-506.10950078,0.00021791,3]
[348093609,1736308165531,-505.99301565,0.00021791,3]
[348093610,1736308165558,-500.0,0.00021791,3]
[348093611,1736308165582,-237.8908135,0.00021791,2]
[348093612,1736308165604,-500.0,0.00021791,3]
[348093613,1736308165626,-503.36886785,0.00021791,3]
[348093614,1736308165649,-500.0,0.00021791,3]
[348093615,1736308165671,-506.13217198,0.00021791,3]
[348093616,1736308165695,-500.0,0.00021791,3]
[348093617,1736308165717,-507.35068349,0.00021791,3]
[348093618,1736308165743,-608.56,0.00021791,3]
[348093619,1736308165765,-505.41449935,0.00021791,3]
[348093620,1736308165788,-506.07541541,0.00021791,3]
[348093621,1736308165811,-514.363424,0.00021791,3]
[348093622,1736308165833,-500.0,0.00021791,3]
[348093623,1736308165856,-500.0,0.00021791,3]
[348093624,1736308165879,-500.0,0.00021791,3]
[348093625,1736308165902,-500.0,0.00021792,3]
[348093626,1736308165925,-500.0,0.00021792,3]
[348093627,1736308165947,-506.83919628,0.00021792,3]
[348093628,1736308165972,-506.51985135,0.00021792,3]
[348093629,1736308165999,-500.0,0.00021792,3]
[348093630,1736308166023,-500.0,0.00021792,3]
[348093631,1736308166046,-500.0,0.00021792,3]
[348093632,1736308166069,-500.0,0.00021792,3]
[348093633,1736308166091,-507.33889814,0.00021792,3]
[348093634,1736308166116,-500.0,0.00021792,3]
[348093635,1736308166138,-500.0,0.00021792,3]
[348093636,1736308166162,-500.0,0.00021792,3]
[348093637,1736308166184,-507.9944664,0.00021792,3]
[348093638,1736308166206,-507.71617731,0.00021792,3]
[348093639,1736308166231,-500.0,0.00021792,3]
[348093640,1736308166254,-500.0,0.00021792,3]
[348093641,1736308166279,-500.0,0.00021792,3]
[348093642,1736308166303,-507.73714799,0.00021792,3]
[348093643,1736308166326,-500.0,0.00021792,3]
[348093644,1736308166349,-508.52924382,0.00021792,3]
[348093645,1736308166372,-500.0,0.00021792,3]
[348093646,1736308166395,-506.4563848,0.00021792,3]
[348093647,1736308166418,-506.86458524,0.00021792,3]
[348093648,1736308166441,-500.0,0.00021792,3]
[348093649,1736308166464,-500.0,0.00021792,3]
[348093650,1736308166490,-506.33259286,0.00021792,3]
[348093651,1736308166513,-500.0,0.00021792,3]
[348093652,1736308166536,-508.3704602,0.00021792,3]
[348093653,1736308166560,-500.0,0.00021792,3]
[348093654,1736308166584,-500.0,0.00021792,3]
[348093655,1736308166608,-500.0,0.00021792,3]
[348093656,1736308166632,-508.1924827,0.00021792,3]
[348093657,1736308166655,-505.62070115,0.00021792,3]
[348093658,1736308166677,-504.23635766,0.00021792,3]
[348093659,1736308166700,-500.0,0.00021792,3]
[348093660,1736308166723,-504.57188026,0.00021792,3]
[348093661,1736308166746,-505.35267519,0.00021792,3]
[348093662,1736308166850,-505.69637255,0.00021792,3]
[348093663,1736308166890,-506.86160828,0.00021792,3]
[348093664,1736308166915,-500.0,0.00021792,3]
[348093665,1736308166938,-500.0,0.00021792,3]
[348093666,1736308166963,-506.87249617,0.00021792,3]
[348093667,1736308166987,-500.0,0.00021792,3]
[348093668,1736308167011,-500.0,0.00021792,3]
[348093669,1736308167035,-500.0,0.00021792,3]
[348093670,1736308167058,-500.0,0.00021792,3]
[348093671,1736308167081,-589.78,0.00021792,3]
[348093672,1736308167103,-508.84813788,0.00021792,3]
[348093673,1736308167126,-500.0,0.00021792,3]
[348093674,1736308167147,-504.95485371,0.00021792,3]
[348093675,1736308167169,-505.38414201,0.00021792,3]
[348093676,1736308167191,-500.0,0.00021792,3]
[348093677,1736308167214,-530.54753525,0.00021792,3]
[348093678,1736308167240,-503.48675409,0.00021792,3]
[348093679,1736308167265,-500.0,0.00021792,3]
[348093680,1736308167290,-500.0,0.00021792,3]
[348093681,1736308167313,-3866.27,0.00021792,3]
[348093682,1736308167337,-500.0,0.00021792,3]
[348093683,1736308167361,-557.20752103,0.00021792,3]
[348093684,1736308167383,-500.0,0.00021792,3]
[348093685,1736308167406,-505.90962445,0.00021792,3]
[348093686,1736308167430,-500.0,0.00021792,3]
[348093687,1736308167454,-505.17361662,0.00021792,3]
[348093688,1736308167477,-505.36769251,0.00021792,3]
[348093689,1736308167500,-506.56164683,0.00021792,3]
[348093690,1736308167522,-500.0,0.00021792,3]
[348093691,1736308167545,-500.0,0.00021792,3]
[348093692,1736308167570,-500.0,0.00021792,3]
[348093693,1736308167592,-238.0,0.00022,2]
[348093694,1736308167614,-178.0,0.00022,2]
[348093695,1736308167637,-499.09213032,0.00022064,3]
[348093696,1736308167661,-500.0,0.00022064,3]
[348093697,1736308167684,-500.0,0.00022065,3]
[348093698,1736308167707,-500.0,0.00022065,3]
[348093699,1736308167731,-184.7631903,0.00022065,3]
[348093700,1736308167755,-500.0,0.00022065,3]
[348093701,1736308167777,-580.42567622,0.00022065,3]
[348093702,1736308167801,-500.0,0.00022065,3]
[348093703,1736308167824,-500.0,0.00022065,3]
[348093704,1736308167847,-500.0,0.00022065,3]
[348093705,1736308167869,-500.0,0.00022065,3]
[348093706,1736308167891,-500.0,0.00022065,3]
[348093707,1736308167914,-500.0,0.00022065,3]
[348093708,1736308167938,-500.0,0.00022065,3]
[348093709,1736308167963,-500.0,0.00022066,3]
[348093710,1736308167989,-366.5168175,0.00022066,3]
[348093711,1736308168014,-500.0,0.00022066,3]
[348093712,1736308168036,-500.0,0.00022066,3]
[348093713,1736308168059,-500.0,0.00022066,3]
[348093714,1736308168080,-387.76,0.00022066,3]
[348093715,1736308168104,-393.92,0.00022066,3]
[348093716,1736308168127,-514.7,0.00022066,3]
[348093717,1736308168148,-306.76,0.00022066,3]
[348093718,1736308168170,-500.0,0.00022066,3]
[348093719,1736308168192,-500.0,0.00022066,3]
[348093720,1736308168214,-475.8,0.00022066,3]
[348093721,1736308168239,-500.0,0.00022066,3]
[348093722,1736308168261,-210.44,0.00022066,3]
[348093723,1736308168286,-500.0,0.00022066,3]
[348093724,1736308168310,-500.0,0.00022066,3]
[348093725,1736308168332,-500.0,0.00022066,3]
[348093726,1736308168354,-500.0,0.00022066,3]
[348093727,1736308168375,-5707.29558905,0.00022066,3]
[348093728,1736308168397,-500.0,0.00022066,3]
[348093729,1736308168419,-500.0,0.00022066,3]
[348093730,1736308168441,-534.64,0.00022066,3]
[348093731,1736308168462,-502.72,0.00022066,3]
[348093732,1736308168489,-500.0,0.00022066,3]
[348093733,1736308168511,-500.0,0.00022066,3]
[348093734,1736308168532,-500.0,0.00022066,3]
[348093735,1736308168553,-500.0,0.00022066,3]
[348093736,1736308168575,-500.0,0.00022066,3]
[348093737,1736308168600,-3866.27,0.00022066,3]
[348093738,1736308168622,-500.0,0.00022066,3]
[348093739,1736308168643,-500.0,0.00022066,3]
[348093740,1736308168664,-500.0,0.00022066,3]
[348093741,1736308168687,-280.05129692,0.00022066,3]
[348093742,1736308168708,-604.43581311,0.00022066,3]
[348093743,1736308168730,-552.03149444,0.00022066,3]
[348093744,1736308168750,-846.0,0.000221,2]
[348093745,1736308168771,-846.0,0.000221,2]
[348093746,1736308168793,-5076.0,0.000221,2]
[348093747,1736308168814,-718.491,0.0002222,2]
[348093748,1736308168836,-500.0,0.00022338,3]
[348093749,1736308168858,-500.0,0.00022339,3]
[348093750,1736308168880,-500.0,0.00022339,3]
[348093751,1736308168903,-500.0,0.00022339,3]
[348093752,1736308168926,-500.0,0.00022339,3]
[348093753,1736308168947,-500.0,0.00022339,3]
[348093754,1736308168975,-500.0,0.00022339,3]
[348093755,1736308168999,-500.0,0.00022339,3]
[348093756,1736308169022,-500.0,0.00022339,3]
[348093757,1736308169044,-500.0,0.00022339,3]
[348093758,1736308169066,-500.0,0.00022339,3]
[348093759,1736308169088,-500.0,0.0002234,3]
[348093760,1736308169109,-180.72,0.0002234,3]
[348093761,1736308169132,-500.0,0.0002234,3]
[348093762,1736308169154,-559.4,0.0002234,3]
[348093763,1736308169254,-559.96,0.0002234,3]
[348093764,1736308169279,-455.84,0.0002234,3]
[348093765,1736308169303,-500.0,0.0002234,3]
[348093766,1736308169329,-500.0,0.0002234,3]
[348093767,1736308169353,-500.0,0.0002234,3]
[348093768,1736308169376,-500.0,0.0002234,3]
[348093769,1736308169400,-500.0,0.0002234,3]
[348093770,1736308169423,-500.0,0.0002234,3]
[348093771,1736308169451,-500.0,0.0002234,3]
[348093772,1736308169474,-249.54,0.0002234,3]
[348093773,1736308169498,-573.40596846,0.0002234,3]
[348093774,1736308169519,-384.61314266,0.0002234,3]
[348093775,1736308169541,-500.0,0.0002234,3]
[348093776,1736308169565,-468.38,0.0002234,3]
[348093777,1736308169588,-3866.27,0.0002234,3]
[348093778,1736308169612,-500.0,0.0002234,3]
[348093779,1736308169635,-500.0,0.0002234,3]
[348093780,1736308169656,-394.0,0.00022414,2]
[348093781,1736308169678,-500.0,0.00022612,3]
[348093782,1736308169703,-500.0,0.00022613,3]
[348093783,1736308169726,-486.66626781,0.00022613,3]
[348093784,1736308169751,-500.0,0.00022613,3]
[348093785,1736308169775,-500.0,0.00022613,3]
[348093786,1736308169797,-500.0,0.00022613,3]
[348093787,1736308169820,-500.0,0.00022613,3]
[348093788,1736308169844,-500.0,0.00022613,3]
[348093789,1736308169868,-500.0,0.00022613,3]
[348093790,1736308169891,-216.22,0.00022613,3]
[348093791,1736308169914,-500.0,0.00022613,3]
[348093792,1736308169940,-500.0,0.00022614,3]
[348093793,1736308169965,-185.48,0.00022614,3]
[348093794,1736308169991,-500.0,0.00022614,3]
[348093795,1736308170015,-500.0,0.00022614,3]
[348093796,1736308170038,-500.0,0.00022614,3]
[348093797,1736308170063,-500.0,0.00022614,3]
[348093798,1736308170085,-500.0,0.00022614,3]
[348093799,1736308170107,-280.22,0.00022614,3]
[348093800,1736308170131,-500.0,0.00022614,3]
[348093801,1736308170154,-163.29805372,0.00022614,3]
[348093802,1736308170177,-3866.27,0.00022614,3]
[348093803,1736308170200,-500.0,0.00022614,3]
[348093804,1736308170222,-500.0,0.00022614,3]
[348093805,1736308170247,-162.96369,0.00022759,2]
[348093806,1736308170272,-764.0620192,0.00022885,10]
[348093807,1736308170295,-500.0,0.00022886,3]
[348093808,1736308170320,-500.0,0.00022887,3]
[348093809,1736308170344,-500.0,0.00022887,3]
[348093810,1736308170367,-500.0,0.00022887,3]
[348093811,1736308170388,-203.36037134,0.00022887,3]
[348093812,1736308170415,-500.0,0.00022887,3]
[348093813,1736308170446,-221.08,0.00022887,3]
[348093814,1736308170475,-491.5,0.00022887,3]
[348093815,1736308170508,-65.59329448,0.00022888,3]
[348093816,1736308170724,5035.230838,0.00021304,2]
[348093817,1736308174769,504.01247864,0.00021517,3]
[348093818,1736308174805,466.752953,0.00021516,3]
[348093819,1736308178497,552.736853,0.00021517,3]
[348093820,1736308182551,500.0,0.00021518,3]
[348093821,1736308182833,509.65273249,0.00021792,3]
[348093822,1736308186511,500.0,0.00021517,3]
[348093823,1736308186774,509.82709916,0.00021791,3]
[348093824,1736308189089,500.0,0.00021517,3]
[348093825,1736308189363,528.24,0.00021791,3]
[348093826,1736308193203,500.0,0.00021517,3]
[348093827,1736308193465,500.0,0.00021791,3]
[348093828,1736308193714,500.0,0.00022065,3]
[348093829,1736308193897,354.38207832,0.00021517,3]
[348093830,1736308193968,446.22,0.00022339,3]
[348093831,1736308199316,500.0,0.00021518,3]
[348093832,1736308199656,507.10719409,0.00021792,3]
[348093833,1736308200157,500.0,0.00021517,3]
[348093834,1736308200439,500.0,0.00021791,3]
[348093835,1736308200700,500.0,0.00022065,3]
[348093836,1736308200989,624.36,0.00022339,3]
[348093837,1736308201966,500.0,0.00021518,3]
[348093838,1736308202221,500.0,0.00021792,3]
[348093839,1736308202494,278.81257133,0.00022066,3]
[348093840,1736308203008,500.0,0.00021517,3]
[348093841,1736308203675,500.0,0.00021791,3]
[348093842,1736308203956,414.68,0.00022065,3]
[348093843,1736308211913,302.7981037,0.00021518,3]
[348093844,1736308212174,500.0,0.00021517,3]
[348093845,1736308212425,506.19555893,0.00021791,3]
[348093846,1736308212492,528.81684974,0.00019999,3]
[348093847,1736308214393,500.0,0.00021517,3]
[348093848,1736308214661,500.0,0.00021791,3]
[348093849,1736308214961,500.0,0.00022065,3]
[348093850,1736308215417,500.0,0.00021518,3]
[348093851,1736308215664,500.0,0.00021792,3]
[348093852,1736308215915,500.0,0.00022066,3]
[348093853,1736308216183,500.0,0.0002234,3]
[348093854,1736308216865,150.0,0.0001924,2]
[348093855,1736308217555,500.0,0.00021517,3]
[348093856,1736308217812,508.37070006,0.00021791,3]
[348093857,1736308220927,500.0,0.00021517,3]
[348093858,1736308221097,500.0,0.00021518,3]
[348093859,1736308221173,500.0,0.00021791,3]
[348093860,1736308221424,382.66,0.00022065,3]
[348093861,1736308221633,509.30022739,0.00021792,3]
[348093862,1736308222222,1027.42087588,0.0002024,2]
[348093915,1736308233061,-360.0,0.00022614,3]
[348093917,1736308233072,-500.0,0.00022887,3]
[348093919,1736308233082,-300.0,0.00022887,2]
[348093921,1736308233092,-1082.36936835,0.00022888,3]
[348093924,1736308233102,-193.34338187,0.00022888,3]
[348093928,1736308233113,-187.16,0.00022888,3]
[348093931,1736308233123,-3866.27,0.00022888,3]
[348093934,1736308233133,-592.7767484,0.00022888,3]
[348093937,1736308233143,-217.45108688,0.00022888,3]
[348093940,1736308233152,-210.00280947,0.000229,2]
[348093943,1736308233162,-500.0,0.00022973,2]
[348093946,1736308233171,-210.00280944,0.00022977,2]
[348093948,1736308233181,-500.0,0.00022998,3]
[348093950,1736308233190,-500.0,0.00022998,3]
[348093952,1736308233200,-34.29089559,0.00022998,3]
[348093955,1736308233213,-465.70910441,0.00022998,3]
[348093957,1736308233223,-212.48756721,0.00022998,3]
[348093959,1736308233232,-500.0,0.00022998,3]
[348093961,1736308233242,-620.85820059,0.00022998,3]
[348093963,1736308233251,-500.0,0.00022998,3]
[348093965,1736308233261,-500.0,0.00022998,3]
[348093967,1736308233274,-518.23328752,0.00022998,3]
[348093969,1736308233285,-501.01687454,0.00022998,3]
[348093970,1736308233295,-500.0,0.00022998,3]
[348093971,1736308233304,-500.0,0.00022998,3]
[348093972,1736308233313,-501.64919599,0.00022998,3]
[348093973,1736308233323,-175.76466643,0.00022998,3]
[348093974,1736308233336,-324.23533357,0.00022998,3]
[348093975,1736308233345,-32.33095834,0.00022998,3]
[348094325,1736308236906,240.38079907,0.00021517,2]
[348094359,1736308238340,-467.66904166,0.00022998,3]
[348094361,1736308238350,-502.76144511,0.00022998,3]
[348094363,1736308238360,-502.60564708,0.00022998,3]
[348094365,1736308238370,-515.92801967,0.00022998,3]
[348094367,1736308238379,-387.71772805,0.00022998,3]
[348094369,1736308238390,-112.28227195,0.00022998,3]
[348094371,1736308238400,-508.02262865,0.00022998,3]
[348094373,1736308238410,-500.0,0.00022998,3]
[348094375,1736308238419,-500.0,0.00022998,3]
[348094377,1736308238429,-500.0,0.00022998,3]
[348094379,1736308238439,-500.0,0.00022998,3]
[348094381,1736308238448,-500.0,0.00022998,3]
[348094383,1736308238457,-500.0,0.00022998,3]
[348094385,1736308238466,-500.0,0.00022998,3]
[348094387,1736308238476,-573.44,0.00022998,3]
[348094389,1736308238486,-503.42037028,0.00022998,3]
[348094391,1736308238495,-500.0,0.00022998,3]
[348094393,1736308238504,-500.55344391,0.00022998,3]
[348094396,1736308238522,-500.0,0.00022998,3]
[348094398,1736308238534,-500.0,0.00022998,3]
[348094400,1736308238544,-500.0,0.00022998,3]
[348094402,1736308238554,-500.85546341,0.00022998,3]
[348094404,1736308238564,-500.0,0.00022998,3]
[348094406,1736308238574,-500.77772592,0.00022998,2]
[348094409,1736308238584,-500.0,0.00022998,3]